[Event "125-Jahre Werder Bremen 2024"]
[Site "Bremen"]
[Date "2024.03.02"]
[Round "1.12"]
[White "Soderstrom, Adrian"]
[Black "Meins, Gerlef"]
[Result "1/2-1/2"]
[ECO "B63"]
[WhiteElo "2288"]
[BlackElo "2390"]
[Annotator "RC"]
[PlyCount "113"]
[EventDate "2024.02.26"]
[EventType "swiss"]
[EventCountry "GER"]
[SourceTitle "playchess.com"]
[Source "ChessBase"]
[SourceQuality "1"]
[TimeControl "40/6000+30:1800+30"]

1. e4 {[%emt 0:00:09]} c5 {[%emt 0:00:08]} 2. Nf3 {[%emt 0:00:04]} Nc6 {[%emt 0:00:22]} 3. d4 {[%emt 0:00:48]} cxd4 {[%emt 0:00:08]} 4. Nxd4 {[%emt 0:00:04]} Nf6 {[%emt 0:00:37]} 5. Nc3 {[%emt 0:00:04]} d6 {[%emt 0:00:42]} 6. Bg5 {[%emt 0:00:22]} e6 {[%emt 0:00:34]} 7. Qd2 {[%emt 0:00:31]} Be7 {[%emt 0:03:23]} 8. O-O-O {[%emt 0:00:34]} Nxd4 {[%emt 0:00:33]} 9. Qxd4 {[%emt 0:00:05]} O-O {[%emt 0:00:11]} 10. h4 {[%emt 0:01:57]} Bd7 {[%emt 0:13:03]} 11. Bxf6 {[%emt 0:15:05]} Bxf6 {[%emt 0:03:01]} 12. Qxd6 {[%emt 0:00:06]} Bc6 {[%emt 0:03:28]} 13. Qxd8 {[%emt 0:24:44]} Rfxd8 {[%emt 0:00:27]} 14. Rxd8+ {[%emt 0:03:21]} Rxd8 {[%emt 0:00:09]} 15. Bd3 {[%emt 0:01:15]} Bd4 {[%emt 0:24:10]} 16. Rf1 {[%emt 0:02:40]} g6 {[%emt 0:05:57]} 17. Ne2 {[%emt 0:04:05]} Bb6 {[%emt 0:04:27]} 18. f3 {[%emt 0:05:16]} Be3+ {[%emt 0:02:15]} 19. Kb1 {[%emt 0:01:12]} f5 {[%emt 0:05:21]} 20. exf5 {[%emt 0:05:46]} exf5 {[%emt 0:00:59]} 21. Rd1 {[%emt 0:02:36]} Kg7 {[%emt 0:01:08]} 22. h5 {[%emt 0:05:22]} Kf6 {[%emt 0:10:35]} 23. hxg6 {[%emt 0:16:28]} hxg6 {[%emt 0:00:07]} 24. Rh1 {[%emt 0:00:32]} Kg7 {[%emt 0:19:05]} 25. Rh3 {[%emt 0:02:51]} Rh8 {[%emt 0:02:51]} 26. Rxh8 {[%emt 0:01:42]} Kxh8 {[%emt 0:00:02]} 27. c3 {[%emt 0:01:28]} Kg7 {[%emt 0:00:34]} 28. Nd4 {[%emt 0:00:59]} Bd7 {[%emt 0:00:50]} 29. Kc2 {[%emt 0:03:58]} Kf6 {[%emt 0:00:09]} 30. Bb5 {[%emt 0:04:38]} Bxd4 {[%emt 0:02:47]} 31. Bxd7 {[%emt 0:00:04]} Bf2 {[%emt 0:00:35]} 32. Kd3 {[%emt 0:01:34]} Ke7 {[%emt 0:02:36]} 33. Bc8 {[%emt 0:00:09]} b6 {[%emt 0:00:06]} 34. Kc4 {[%emt 0:00:24]} Kd6 {[%emt 0:00:18]} 35. Kb5 {[%emt 0:01:23]} a5 {[%emt 0:03:01]} 36. Bb7 {[%emt 0:04:18]} f4 {[%emt 0:01:15]} 37. Be4 {[%emt 0:00:19]} g5 {[%emt 0:00:06]} 38. a4 {[%emt 0:01:40]} Kc7 {[%emt 0:00:31]} 39. Kc4 {[%emt 0:00:33]} Kd6 {[%emt 0:00:17]} 40. Ba8 {[%emt 0:00:36]} Be3 {[%emt 0:01:11]} 41. Kd3 {[%emt 0:03:45]} Ke5 {[%emt 0:01:57]} 42. g4 {[%emt 0:00:14]} Bf2 {[%emt 0:00:33]} 43. Kc4 {[%emt 0:01:07]} Kd6 {[%emt 0:00:13]} 44. Kb5 {[%emt 0:00:06]} Kc7 {[%emt 0:00:10]} 45. Be4 {[%emt 0:02:17]} Be3 {[%emt 0:00:34]} 46. b4 {[%emt 0:00:14]} axb4 {[%emt 0:00:07]} 47. cxb4 {[%emt 0:00:18]} Bd2 {[%emt 0:01:03]} 48. Kc4 {[%emt 0:00:54]} Be1 {[%emt 0:00:55]} 49. Bc2 {[%emt 0:00:31]} Kd6 {[%emt 0:00:41]} 50. Bb3 {[%emt 0:00:24]} Kc7 {[%emt 0:00:19]} 51. b5 {[%emt 0:02:30]} Kd6 {[%emt 0:00:20]} 52. Kd4 {[%emt 0:00:01]} Bf2+ {[%emt 0:01:26]} 53. Ke4 {[%emt 0:00:09]} Kc5 {[%emt 0:00:11]} 54. Kf5 {[%emt 0:00:16]} Bh4 {[%emt 0:00:06]} 55. Ke6 {[%emt 0:00:23]} Kb4 {[%emt 0:00:07]} 56. Bd1 {[%emt 0:00:16]} Ka5 {[%emt 0:00:11]} 57. Ke5 {[%emt 0:25:53]} 1/2-1/2

[Event "125-Jahre Werder Bremen 2024"]
[Site "Bremen"]
[Date "2024.03.03"]
[Round "2.1"]
[White "Wachinger, Nikolas"]
[Black "Aditya Mittal"]
[Result "1/2-1/2"]
[ECO "B33"]
[WhiteElo "2442"]
[BlackElo "2594"]
[Annotator "TA"]
[PlyCount "118"]
[EventDate "2024.02.26"]
[EventType "swiss"]
[EventCountry "GER"]
[SourceTitle "playchess.com"]
[Source "ChessBase"]
[SourceQuality "1"]
[TimeControl "40/6000+30:1800+30"]

{[%evp 25,118,27,35,27,42,37,37,34,43,28,25,21,40,0,39,0,0,-37,-32,-38,-6,-37,0,-10,-4,-43,-44,-40,0,-16,0,-52,-16,-45,-58,-120,-113,-112,-112,-110,-60,-57,-44,-79,-51,-89,-71,-71,-71,-71,-71,-70,-58,-70,-70,-70,-70,-70,-63,-61,-61,-68,-68,-80,-67,-80,-71,-79,-15,-12,-12,-20,-20,-31,-8,-12,-12,-75,-20,-19,-12,-12,-10,-36,-8,-8,-8,-8,-8,-8,-8,-8,-8,-8,-1]} 1. e4 {[%emt 0:04:08]} c5 {[%emt 0:00:01]} 2. Nf3 {[%emt 0:00:10]} Nc6 {[%emt 0:00:02]} 3. d4 {[%emt 0:00:18]} cxd4 {[%emt 0:00:01]} 4. Nxd4 {[%emt 0:00:08]} Nf6 {[%emt 0:00:02]} 5. Nc3 {[%emt 0:00:11]} e5 {[%emt 0:00:02]} 6. Ndb5 {[%emt 0:00:08][%cal Bd4b5,Bb5a3,Ba3c2,Bc2e3,Be3d5][%mdl 32]} d6 {[%emt 0:00:01]} 7. Bg5 {[%emt 0:00:09]} a6 {[%emt 0:00:02]} 8. Na3 {[%emt 0:00:10]} b5 {[%emt 0:00:02]} 9. Nd5 {[%emt 0:00:14]} Be7 {[%emt 0:00:02][%cal Bf8e7,Be7f6,Bf6g7][%mdl 32]} 10. Bxf6 {[%emt 0:00:11]} Bxf6 {[%emt 0:00:01]} 11. c3 {[%emt 0:00:11]} O-O {[%emt 0:00:16]} 12. Nc2 {[%emt 0:02:51]} Rb8 {[%emt 0:00:01]} 13. h4 {[%emt 0:09:45][%cal Bh2h4,Bh4h5][%mdl 32]} g6 {[%emt 0:00:02]} 14. g3 {[%emt 0:01:54]} Bg7 {[%emt 0:00:18]} 15. h5 {[%emt 0:01:15]} Ne7 {[%emt 0:07:55]} 16. Nce3 {[%emt 0:13:00] A dynamic duo of knights. White is slightly better.} Bb7 {[%emt 0:00:50]} 17. a3 {[%emt 0:15:11]} Nxd5 {[%emt 0:07:21]} 18. Nxd5 {[%emt 0:00:15]} Qg5 {[%emt 0:08:47]} 19. hxg6 {[%emt 0:30:42]} hxg6 {[%emt 0:02:01]} 20. Qg4 {[%emt 0:02:13]} Bh6 {[%emt 0:00:39]} 21. Qxg5 {[%emt 0:01:57]} Bxg5 {[%emt 0:00:01]} 22. Rd1 {[%emt 0:00:11]} Kg7 {[%emt 0:06:14]} 23. Bh3 {[%emt 0:02:32]} a5 {[%emt 0:16:31]} 24. Bd7 {[%emt 0:07:48] [#]} b4 $1 {[%emt 0:03:14]} 25. axb4 {[%emt 0:02:16]} (25. cxb4 axb4) 25... axb4 {[%emt 0:00:26]} 26. c4 {[%emt 0:00:38]} b3 {[%emt 0:11:25]} 27. Bb5 {[%emt 0:05:21]} f5 {[%emt 0:03:36]} 28. f4 {[%emt 0:03:23]} ({Better is} 28. Nc7 $11 Rf6 (28... Bxe4 29. Ne6+ Kg8 30. Rh3 $14) 29. Ne8+ Rxe8 30. Bxe8 Bxe4 31. O-O) 28... Bd8 {[%emt 0:10:19]} 29. exf5 {[%emt 0:01:26]} exf4 {[%emt 0:02:47]} 30. gxf4 {[%emt 0:01:23]} (30. g4 $15) 30... Rxf5 $17 {[%emt 0:01:25]} (30... gxf5 31. Ke2 $14) 31. Bd7 {[%emt 0:00:10]} Bxd5 {[%emt 0:03:36]} 32. Rxd5 {[%emt 0:01:49]} Rxf4 {[%emt 0:00:27]} (32... Rxd5 $17 33. cxd5 Bf6) 33. Rb5 $15 {[%emt 0:00:45]} Rxb5 {[%emt 0:10:15]} 34. Bxb5 {[%emt 0:00:50][%mdl 4096] Endgame. KRB-KRB} Rg4 {[%emt 0:05:55]} 35. Kf2 {[%emt 0:02:35] Inhibits Rg2+.} Bh4+ {[%emt 0:04:13]} 36. Kf1 {[%emt 0:00:06]} Rf4+ {[%emt 0:02:42]} 37. Ke2 {[%emt 0:00:13]} g5 {[%emt 0:00:34]} 38. Rh2 {[%emt 0:01:14]} Kf6 {[%emt 0:01:39]} 39. Ke3 {[%emt 0:00:25]} Ke5 {[%emt 0:01:37]} 40. Rh3 $1 {[%emt 0:01:46]} Bf2+ {[%emt 0:04:30]} (40... Rf2 41. Rxh4 Rxb2 42. Re4+ Kf6 43. Rd4 $16) 41. Ke2 {[%emt 0:04:11]} Bc5 {[%emt 0:06:54] ...Rf2+ would now be deadly.} 42. Rxb3 {[%emt 0:02:24]} g4 {[%emt 0:00:24] And now ...Rf2+ would win.} 43. Bc6 {[%emt 0:17:27]} Rxc4 {[%emt 0:01:55]} 44. Rb8 {[%emt 0:00:03]} Kf4 {[%emt 0:07:36]} 45. Kd3 {[%emt 0:01:14] [#]} d5 {[%emt 0:06:12]} 46. b4 {[%emt 0:01:02] [#]} (46. Ke2 d4) 46... Ba7 {[%emt 0:01:32]} (46... Rd4+ $1 $17 47. Kc3 Rc4+ 48. Kd3 Bf2 (48... Bxb4 49. Bxd5 Rc3+ 50. Kd4 $11) 49. Rf8+ Ke5 50. Bxd5 Rd4+ (50... Rxb4 51. Rxf2 Kxd5 52. Rf8 $11) 51. Ke2 Bh4) 47. Rf8+ $11 {[%emt 0:00:47]} Ke5 {[%emt 0:02:00]} 48. b5 {[%emt 0:00:35]} Rd4+ {[%emt 0:00:27]} 49. Ke2 {[%emt 0:00:49]} Kd6 {[%emt 0:01:47]} 50. Re8 {[%emt 0:01:13]} Bb6 {[%emt 0:00:42]} 51. Kf2 {[%emt 0:00:50]} (51. Rg8 $11 {keeps the balance.}) 51... Rd1+ {[%emt 0:01:17]} ({Black should try} 51... Bc7 $17) 52. Ke2 {[%emt 0:01:25]} Ra1 {[%emt 0:02:30] White must now prevent ...Ra2+.} 53. Rg8 {[%emt 0:00:31]} Ra2+ {[%emt 0:00:06]} 54. Kf1 {[%emt 0:02:40]} Rf2+ {[%emt 0:00:33]} 55. Ke1 {[%emt 0:00:01] The position is equal.} Rf4 {[%emt 0:00:12]} 56. Rg5 {[%emt 0:00:23]} Rd4 {[%emt 0:01:14]} 57. Ke2 {[%emt 0:00:22]} Bc7 {[%emt 0:01:47]} 58. Rg6+ {[%emt 0:00:59]} Kc5 {[%emt 0:00:41]} 59. Bd7 $1 {[%emt 0:00:22]} Re4+ {[%emt 0:00:49] Weighted Error Value: White=0.16 (very precise) /Black=0.14 (very precise) .  Mistake:       	White=3     	Black=3      Inaccurate:     	White=9     	Black=7      OK:         	White=12    	Black=13     Best:        	White=4     	Black=3      Strong:       	White=2     	---} 1/2-1/2

[Event "125-Jahre Werder Bremen 2024"]
[Site "Bremen"]
[Date "2024.03.03"]
[Round "2.2"]
[White "Wiegmann, Sascha"]
[Black "Cheng, Bobby"]
[Result "0-1"]
[ECO "B50"]
[WhiteElo "2297"]
[BlackElo "2584"]
[Annotator "TA"]
[PlyCount "78"]
[EventDate "2024.02.26"]
[EventType "swiss"]
[EventCountry "GER"]
[SourceTitle "playchess.com"]
[Source "ChessBase"]
[SourceQuality "1"]
[TimeControl "40/6000+30:1800+30"]

{[%evp 9,78,-39,-37,-37,-31,-33,-14,-14,-14,-13,-11,-38,-42,-32,-27,-60,-49,-130,-81,-139,-138,-115,-85,-200,-191,-231,-235,-222,-228,-239,-232,-236,-229,-206,-220,-230,-235,-236,-229,-236,-236,-236,-236,-236,-236,-236,-233,-231,-230,-333,-330,-340,-345,-332,-326,-320,-328,-300,-285,-498,-477,-500,-505,-580,-548,-570,-566,-727,-735,-808,-801]} 1. e4 {[%emt 0:00:02]} c5 {[%emt 0:01:02]} 2. Nf3 {[%emt 0:00:08]} d6 {[%emt 0:00:30]} 3. g3 {[%emt 0:00:19]} Nf6 {[%emt 0:06:12]} 4. Bg2 {[%emt 0:00:50]} Nxe4 {[%emt 0:08:39]} 5. O-O {[%emt 0:00:17]} Nf6 {[%emt 0:04:00]} 6. d4 {[%emt 0:00:40]} cxd4 {[%emt 0:01:55]} 7. Nxd4 {[%emt 0:00:03]} e6 {[%emt 0:03:41]} 8. c4 {[%emt 0:03:26] The position is equal.} Be7 {[%emt 0:00:49]} 9. Nc3 {[%emt 0:16:41]} O-O {[%emt 0:02:19]} 10. Qe2 {[%emt 0:04:03]} a6 {[%emt 0:03:16]} 11. Rd1 {[%emt 0:01:56]} Qc7 {[%emt 0:01:19]} 12. a4 {[%emt 0:06:37]} Nc6 {[%emt 0:05:41]} 13. a5 {[%emt 0:34:17]} Bd7 {[%emt 0:29:13]} (13... Nxa5 $142 14. c5 d5 (14... Qxc5 15. Be3 $17) (14... dxc5 15. Bf4 $17)) 14. Bf4 {[%emt 0:17:48]} (14. Nb3 $142) 14... Nxd4 {[%emt 0:17:57]} 15. Rxd4 {[%emt 0:00:02]} Bc6 {[%emt 0:00:09]} 16. c5 {[%emt 0:09:44]} (16. Bxc6 $17 {keeps fighting.} bxc6 (16... Qxc6 17. Nd5 $15) 17. Rd2) 16... e5 $19 {[%emt 0:01:40]} 17. cxd6 {[%emt 0:00:09]} Bxd6 {[%emt 0:00:04]} 18. Rxd6 {[%emt 0:00:19]} Qxd6 {[%emt 0:00:31]} 19. Bxe5 {[%emt 0:00:19]} Qe6 {[%emt 0:01:06]} 20. Bd4 {[%emt 0:03:43]} Rfe8 {[%emt 0:02:43]} 21. Qxe6 {[%emt 0:01:35]} Rxe6 {[%emt 0:00:06]} ({Much less strong is} 21... fxe6 22. Bxc6 bxc6 23. Rc1) 22. Bxc6 {[%emt 0:01:26]} Rxc6 {[%emt 0:00:07]} 23. Ra4 {[%emt 0:00:04]} Rd8 {[%emt 0:04:21]} 24. Rb4 {[%emt 0:02:26]} Rd7 {[%emt 0:00:15]} 25. Be3 {[%emt 0:00:19]} h6 {[%emt 0:01:19]} 26. Rf4 {[%emt 0:01:21]} Re6 {[%emt 0:02:11]} 27. Rc4 {[%emt 0:01:46]} Re5 {[%emt 0:00:40]} 28. b4 {[%emt 0:00:09]} Re6 {[%emt 0:02:11]} 29. Rf4 {[%emt 0:02:09]} (29. Kf1 $142) 29... Rd3 {[%emt 0:01:43]} 30. Rc4 {[%emt 0:01:12]} Rc6 {[%emt 0:01:22]} 31. Bc5 {[%emt 0:00:01]} Nd7 {[%emt 0:00:52]} 32. Na4 {[%emt 0:00:13]} Ra3 {[%emt 0:04:25]} 33. Rd4 {[%emt 0:00:03]} Rc7 {[%emt 0:00:17]} 34. Nb6 {[%emt 0:01:48] [#]} (34. Bd6 {is a better defense.} Rc1+ 35. Kg2 Rxa4 36. Bf4) 34... Nxc5 {[%emt 0:00:41] Black is clearly winning.} 35. bxc5 {[%emt 0:00:01]} Rxa5 {[%emt 0:01:40]} 36. Rd8+ {[%emt 0:00:06]} Kh7 {[%emt 0:00:02]} 37. Nd7 {[%emt 0:00:05]} g5 {[%emt 0:02:55]} 38. g4 {[%emt 0:01:01]} Kg7 {[%emt 0:00:13] [#] Prevents Nf6. ...Ra1+ would now be deadly.} 39. Kg2 {[%emt 0:01:08]} Ra4 {[%emt 0:00:37] Weighted Error Value: White=0.37/Black=0.04 (flawless) .  Mistake:       	White=5     	Black=1      Inaccurate:     	White=2     	---        OK:         	White=10    	Black=19     Best:        	White=1     	Black=1} 0-1

[Event "125-Jahre Werder Bremen 2024"]
[Site "Bremen"]
[Date "2024.03.03"]
[Round "2.3"]
[White "Gumularz, Szymon"]
[Black "Breutigam, Martin"]
[Result "1-0"]
[ECO "E06"]
[WhiteElo "2590"]
[BlackElo "2359"]
[Annotator "TA"]
[PlyCount "77"]
[EventDate "2024.02.26"]
[EventType "swiss"]
[EventCountry "GER"]
[SourceTitle "playchess.com"]
[Source "ChessBase"]
[SourceQuality "1"]
[TimeControl "40/6000+30:1800+30"]

{[%evp 22,77,52,43,45,50,46,48,102,94,104,107,113,90,111,104,114,106,117,109,149,141,281,283,239,164,172,166,194,168,168,165,211,197,210,195,216,207,195,206,212,202,195,194,252,256,230,237,255,244,371,362,439,431,623,622,29988,29989]} 1. c4 {[%emt 0:00:04]} e6 {[%emt 0:00:21]} 2. g3 {[%emt 0:00:17]} d5 {[%emt 0:00:18]} 3. Bg2 {[%emt 0:00:05]} Nf6 {[%emt 0:00:07]} 4. Nf3 {[%emt 0:00:03]} Be7 {[%emt 0:00:32]} 5. O-O {[%emt 0:00:07]} O-O {[%emt 0:00:25]} 6. d4 {[%emt 0:00:04]} c6 {[%emt 0:02:54]} 7. Nc3 {[%emt 0:00:28]} a5 {[%emt 0:02:19] E06: Closed Catalan: Early deviations.} 8. Nd2 {[%emt 0:05:44]} b6 {[%emt 0:02:40]} 9. e4 {[%emt 0:00:50]} Ba6 {[%emt 0:00:54]} 10. e5 {[%emt 0:06:07]} Ne8 $146 {[%emt 0:00:43]} ({Predecessor:} 10... Nfd7 11. b3 b5 12. Re1 b4 13. Na4 Nb6 14. Nxb6 Qxb6 15. c5 Qd8 16. Nf1 Bb5 {0-1 Ernst,L (2093)-Kleibel,U (2302) Titled Tuesday intern op 26th Sep Early blitz 2023 (5)}) 11. b3 {[%emt 0:03:04]} b5 {[%emt 0:06:51]} 12. c5 {[%emt 0:00:24]} b4 {[%emt 0:00:28]} 13. Ne2 {[%emt 0:00:04]} Nd7 {[%emt 0:02:53]} 14. Re1 {[%emt 0:00:19]} Bxe2 {[%emt 0:09:10]} (14... g5 $14) 15. Qxe2 $16 {[%emt 0:00:35]} Nc7 {[%emt 0:00:21]} 16. Nf3 {[%emt 0:01:35]} Re8 {[%emt 0:08:47]} 17. Bd2 {[%emt 0:01:25]} Nb5 {[%emt 0:01:18]} 18. h4 {[%emt 0:00:47]} h6 {[%emt 0:03:36]} 19. Qe3 {[%emt 0:00:27]} Na3 {[%emt 0:23:17]} 20. Rac1 {[%emt 0:00:23]} Qb8 {[%emt 0:00:14]} 21. Bf1 {[%emt 0:00:29]} f5 {[%emt 0:04:14]} (21... Rc8 $16 22. Qf4 Nb5) 22. exf6 $18 {[%emt 0:13:31]} Bxf6 {[%emt 0:00:11]} 23. Bh3 {[%emt 0:00:13]} Nf8 {[%emt 0:02:50]} 24. g4 {[%emt 0:00:05]} g5 {[%emt 0:04:30]} 25. hxg5 {[%emt 0:04:59]} hxg5 {[%emt 0:00:05]} 26. Ne5 {[%emt 0:17:23]} Qc7 {[%emt 0:04:13] [#]} (26... Bxe5 {was called for.} 27. dxe5 Qd8) 27. Bf1 $1 $18 {[%emt 0:00:12]} Nb5 {[%emt 0:02:45]} 28. Qf3 {[%emt 0:04:26]} Qg7 {[%emt 0:01:27]} 29. Bxb5 {[%emt 0:00:38]} (29. Nxc6 Nxd4 30. Nxd4 Bxd4 $11) 29... cxb5 {[%emt 0:00:06]} 30. Qd3 {[%emt 0:00:06]} Nd7 {[%emt 0:03:11]} 31. Nf3 {[%emt 0:00:27]} (31. Qxb5 $6 Nxe5 (31... Bxe5 32. c6 $16) 32. dxe5 Bxe5) 31... Nf8 {[%emt 0:07:26]} 32. c6 {[%emt 0:05:13]} (32. Qxb5 Ng6 $16) 32... Ng6 {[%emt 0:00:50]} (32... Re7 {was worth a try.} 33. Ne5 (33. Qxb5 Bxd4 34. Kg2 Bf6 $18) 33... Rc8) 33. c7 $18 {[%emt 0:03:09]} (33. Qxb5 Nh4 34. Nxh4 gxh4 $18) (33. Bxg5 $2 Bxg5 34. Nxg5 Nf4 $19) (33. Nxg5 Nh4 $18) 33... Rac8 {[%emt 0:04:44]} 34. Rc6 {[%emt 0:01:38]} (34. Bxg5 $2 Bxg5 35. Nxg5 Nf4 $19) (34. Qxb5 Nh4 35. Re3 (35. Nxh4 gxh4 36. Kh2 Bxd4 $11) 35... Bxd4 $16) (34. Nxg5 Nf8 35. Nf3 (35. Qe3 Bxd4 36. Qf4 Bb6 $11) 35... Qxg4+ 36. Kf1 Bg7) 34... Nf8 {[%emt 0:02:15]} 35. Qxb5 {[%emt 0:07:34]} Qd7 {[%emt 0:03:55]} (35... Re7 $142 36. Qxa5 Qh6 37. Rexe6 (37. Qxb4 Rh7 $16) 37... Nxe6 38. Rxe6 (38. Bxb4 $2 Rh7 $19) (38. Qa6 Rcxc7 39. Rxe6 Qh3 $11) 38... Rxe6 39. Qxd5 Rxc7 40. Qxe6+ Kh7 41. Bxb4 Rc1+ 42. Be1 Kg7 43. Qd7+ Kh8) 36. Ne5 $18 {[%emt 0:08:21]} (36. Bxg5 Qg7 37. Qa6 Bxg5 38. Rcxe6 Bf4 (38... Nxe6 $2 39. Rxe6 Qd7 40. Rg6+ Kh8 41. Rxg5 $18) 39. Rxe8 Qxg4+ 40. Kf1 Qh3+ 41. Kg1 Qg4+ 42. Kf1 Qh3+ 43. Kg1 Qg4+ $11) (36. Nxg5 Rxc7 37. Rb6 Bxd4 38. Qxd7 Rxd7 $11) 36... Bxe5 {[%emt 0:00:19]} 37. Rxe5 {[%emt 0:00:05]} (37. dxe5 Rxc7 38. Rc5 (38. Rec1 Rec8 $11) 38... Rxc5 39. Qxc5 Rc8 40. Qxa5 Qf7 $14) 37... Rxc7 {[%emt 0:00:21]} (37... Nh7 $142 38. Qb7 (38. Bxg5 Rxc7 39. Rb6 Qxb5 $16) 38... Kh8) 38. Rxg5+ $18 {[%emt 0:00:03]} Kh8 {[%emt 0:00:19]} 39. Bf4 {[%emt 0:00:22]} (39. Rh5+ Kg8 40. Rg5+ Kf7 $18) 1-0

[Event "125-Jahre Werder Bremen 2024"]
[Site "Bremen"]
[Date "2024.03.03"]
[Round "2.4"]
[White "Efimenko, Zahar"]
[Black "Reuker, Jari"]
[Result "1-0"]
[ECO "C48"]
[WhiteElo "2568"]
[BlackElo "2383"]
[Annotator "TA"]
[PlyCount "131"]
[EventDate "2024.02.26"]
[EventType "swiss"]
[EventCountry "GER"]
[SourceTitle "playchess.com"]
[Source "ChessBase"]
[SourceQuality "1"]
[TimeControl "40/6000+30:1800+30"]

{[%evp 38,131,62,68,65,60,60,56,64,71,69,60,74,57,62,29,28,31,31,30,21,24,62,48,50,29,38,42,39,0,0,0,0,0,0,0,0,0,0,0,0,0,0,0,0,0,0,0,0,8,10,11,8,8,11,0,0,0,0,0,21,20,32,0,0,0,0,0,0,0,8,8,6,0,4,0,32,9,8,8,12,14,14,15,12,15,236,220,412,412,412,412,408,344,5097,5089]} 1. e4 {[%emt 0:00:40]} e5 {[%emt 0:02:17]} 2. Nf3 {[%emt 0:00:09]} Nc6 {[%emt 0:00:06]} 3. Bb5 {[%emt 0:00:06]} Nf6 {[%emt 0:00:11]} 4. d3 {[%emt 0:00:21]} Bc5 {[%emt 0:00:10]} 5. O-O {[%emt 0:00:19]} d6 {[%emt 0:01:25]} 6. Nc3 {[%emt 0:00:23]} a6 {[%emt 0:20:01] C48: Four Knights: 4 Bb5, replies other than 4...Bb4.} 7. Bxc6+ {[%emt 0:00:27]} bxc6 {[%emt 0:00:04]} 8. d4 {[%emt 0:00:19]} exd4 {[%emt 0:00:17]} 9. Nxd4 {[%emt 0:00:05]} Bd7 {[%emt 0:01:02]} 10. h3 {[%emt 0:01:04]} h6 {[%emt 0:03:09]} 11. Re1 {[%emt 0:02:11]} O-O {[%emt 0:00:31]} 12. Nf3 $146 {[%emt 0:01:23]} ({Predecessor:} 12. Qd3 Re8 13. Nf3 Qb8 14. a3 Qb6 15. Re2 Qb7 16. b3 Nh5 17. Be3 Bxe3 18. Rxe3 {1-0 Koskinen,P (2210)-Laine,E (1933) FIN SC45 email 2012}) 12... Re8 {[%emt 0:13:29]} 13. e5 {[%emt 0:08:44]} dxe5 {[%emt 0:01:54]} 14. Nxe5 {[%emt 0:00:16]} Bf5 {[%emt 0:06:06]} 15. Qf3 {[%emt 0:06:14]} Bxc2 {[%emt 0:01:22]} 16. Bf4 {[%emt 0:02:48]} Bd6 {[%emt 0:17:14]} 17. Rac1 {[%emt 0:07:05]} Bg6 {[%emt 0:12:40]} 18. Nxc6 {[%emt 0:19:24]} Qd7 {[%emt 0:00:28]} 19. Bxd6 {[%emt 0:00:35]} cxd6 {[%emt 0:11:32]} 20. Re7 {[%emt 0:02:29]} Qf5 {[%emt 0:00:09]} 21. Qxf5 {[%emt 0:04:34]} Bxf5 {[%emt 0:00:06]} 22. Rxe8+ {[%emt 0:09:31]} Rxe8 {[%emt 0:00:05]} 23. Rd1 {[%emt 0:00:27]} Ne4 {[%emt 0:07:26]} 24. Nd5 {[%emt 0:06:56]} Bd7 {[%emt 0:02:52]} 25. Nd4 {[%emt 0:00:24]} Rb8 {[%emt 0:01:43]} 26. b4 {[%emt 0:02:14]} Be6 {[%emt 0:02:16]} 27. Ne7+ {[%emt 0:09:40]} Kf8 {[%emt 0:01:25]} 28. Nec6 {[%emt 0:01:06]} Rb6 {[%emt 0:00:18]} 29. a3 {[%emt 0:01:33]} d5 {[%emt 0:00:36]} 30. Rc1 {[%emt 0:01:44]} Nd6 {[%emt 0:00:45]} 31. Na5 {[%emt 0:00:41]} Nb5 {[%emt 0:01:13]} 32. Nxb5 {[%emt 0:04:39]} axb5 {[%emt 0:00:02]} 33. Nc6 {[%emt 0:00:20]} Bd7 {[%emt 0:00:50]} 34. Nd4 {[%emt 0:01:28]} Ke7 {[%emt 0:00:53]} 35. f3 {[%emt 0:03:18]} Kd6 {[%emt 0:00:26]} 36. Kf2 {[%emt 0:00:08]} Ra6 {[%emt 0:01:07]} 37. Rc3 {[%emt 0:00:08]} h5 {[%emt 0:00:32]} 38. h4 {[%emt 0:01:03]} Ra8 {[%emt 0:01:12]} 39. Ke3 {[%emt 0:01:09]} f6 {[%emt 0:00:36]} 40. Kd2 {[%emt 0:01:21]} g5 {[%emt 0:01:13]} 41. g3 {[%emt 0:33:03]} Rg8 {[%emt 0:08:15]} 42. Rc5 {[%emt 0:00:00]} Ra8 {[%emt 0:02:05]} 43. Nc2 {[%emt 0:00:00]} Bf5 {[%emt 0:02:25]} 44. Ne3 {[%emt 0:00:00]} Be6 {[%emt 0:00:20]} 45. Rxb5 {[%emt 0:00:00]} Rxa3 {[%emt 0:00:16]} 46. Rb6+ {[%emt 0:00:00]} Ke7 $1 {[%emt 0:02:35]} 47. Nc2 {[%emt 0:00:00]} Ra2 {[%emt 0:02:01]} (47... Rxf3 $2 48. Rxe6+ Kd7 49. Re3 Rf2+ 50. Re2 $18) 48. Kc3 {[%emt 0:00:00]} Bf5 {[%emt 0:04:07]} 49. Nd4 {[%emt 0:00:00]} Bd7 {[%emt 0:00:50]} 50. b5 {[%emt 0:00:00]} gxh4 {[%emt 0:03:30]} 51. gxh4 {[%emt 0:00:00]} Ra4 {[%emt 0:00:22]} 52. Rb8 {[%emt 0:00:09]} Rc4+ {[%emt 0:01:16]} 53. Kd3 {[%emt 0:00:10]} Rb4 {[%emt 0:00:44]} 54. b6 {[%emt 0:03:30]} Kd6 {[%emt 0:01:20]} 55. b7 {[%emt 0:01:18]} Rb6 {[%emt 0:02:56]} 56. Ke3 {[%emt 0:05:17]} Kc7 {[%emt 0:00:59]} 57. Rh8 {[%emt 0:00:12]} Rxb7 {[%emt 0:00:14]} 58. Rxh5 {[%emt 0:00:11]} Kd6 {[%emt 0:00:28]} 59. Rh6 {[%emt 0:00:48]} Ke7 {[%emt 0:00:50]} 60. Rh7+ {[%emt 0:01:15]} Kd6 {[%emt 0:02:44]} 61. Rf7 {[%emt 0:00:22]} f5 $2 {[%emt 0:00:59]} (61... Rc7 $11 {and Black is okay.}) 62. h5 $1 $18 {[%emt 0:01:36]} (62. Nxf5+ Ke5 63. Nd4 Rc7 $11) 62... Rb1 $2 {[%emt 0:00:33]} (62... f4+ 63. Kxf4 Rb4) 63. h6 $1 $18 {[%emt 0:01:24]} (63. Nxf5+ Bxf5 64. Rxf5 Rh1 $11) 63... Rh1 {[%emt 0:00:07]} 64. h7 {[%emt 0:00:33]} (64. Nxf5+ Bxf5 65. Rxf5 Rxh6 $11) 64... Rh4 {[%emt 0:00:19]} 65. f4 $1 {[%emt 0:00:59]} (65. Nxf5+ Bxf5 66. Rxf5 Ke6 $11 (66... Rxh7 67. f4 $11)) 65... Rh6 $2 {[%emt 0:01:46]} (65... Rh1 66. Nf3 (66. Nxf5+ Bxf5 67. Rxf5 Rxh7 $11) 66... Be8) 66. Rf6+ {[%emt 0:05:17]} 1-0